[Event "Titled Tuesday Blitz June 27 Late 2023"]
[White "Labussiere, Yago"]
[Black "Bazeev, German"]
[WhiteFideId "2186969"]
[BlackFideId "24119350"]
[WhiteElo "2444"]
[BlackElo "2805"]
[Result "0-1"]
[Round "1"]
[TimeControl "180+2"]
[Date "2023.06.27"]
[WhiteClock "0:00:34"]
[BlackClock "0:01:19"]
[Board "58"]

1. c4 {[%clk 0:02:55]}  e5 {[%clk 0:02:59]} 2. Nc3 {[%clk 0:02:54]}  Nf6 {[%clk 0:02:59]} 3. Nf3 {[%clk 0:02:54]}  Nc6 {[%clk 0:02:59]} 4. e3 {[%clk 0:02:54]}  Bb4 {[%clk 0:02:59]} 5. Qc2 {[%clk 0:02:54]}  Bxc3 {[%clk 0:02:59]} 6. bxc3 {[%clk 0:02:54]}  O-O {[%clk 0:02:56]} 7. e4 {[%clk 0:02:54]}  d6 {[%clk 0:02:57]} 8. Be2 {[%clk 0:02:50]}  Nd7 {[%clk 0:02:55]} 9. O-O {[%clk 0:02:50]}  Nc5 {[%clk 0:02:55]} 10. d4 {[%clk 0:02:46]}  Nd7 {[%clk 0:02:56]} 11. Be3 {[%clk 0:02:28]}  b6 {[%clk 0:02:54]} 12. Nd2 {[%clk 0:02:28]}  Bb7 {[%clk 0:02:47]} 13. f4 {[%clk 0:02:27]}  exf4 {[%clk 0:02:28]} 14. Rxf4 {[%clk 0:02:24]}  Ne7 {[%clk 0:02:29]} 15. Raf1 {[%clk 0:02:20]}  Ng6 {[%clk 0:02:26]} 16. R4f2 {[%clk 0:02:16]}  f6 {[%clk 0:02:19]} 17. Bg4 {[%clk 0:02:15]}  Qe7 {[%clk 0:02:16]} 18. g3 {[%clk 0:01:39]}  Rae8 {[%clk 0:02:02]} 19. Bf5 {[%clk 0:01:39]}  Rf7 {[%clk 0:01:56]} 20. Re1 {[%clk 0:01:24]}  Ndf8 {[%clk 0:01:56]} 21. Rfe2 {[%clk 0:01:17]}  Bc8 {[%clk 0:01:56]} 22. Bf2 {[%clk 0:01:14]}  Qd8 {[%clk 0:01:55]} 23. Nf3 {[%clk 0:01:08]}  Ne7 {[%clk 0:01:51]} 24. Bxc8 {[%clk 0:01:06]}  Qxc8 {[%clk 0:01:50]} 25. Kg2 {[%clk 0:01:07]}  Neg6 {[%clk 0:01:49]} 26. Qb3 {[%clk 0:00:57]}  Qg4 {[%clk 0:01:48]} 27. Be3 {[%clk 0:00:46]}  Rxe4 {[%clk 0:01:44]} 28. Bc1 {[%clk 0:00:45]}  Rxe2+ {[%clk 0:01:31]} 29. Rxe2 {[%clk 0:00:45]}  Qd7 {[%clk 0:01:32]} 30. h3 {[%clk 0:00:44]}  Re7 {[%clk 0:01:28]} 31. c5+ {[%clk 0:00:43]}  d5 {[%clk 0:01:28]} 32. Qc2 {[%clk 0:00:38]}  Rxe2+ {[%clk 0:01:24]} 33. Qxe2 {[%clk 0:00:39]}  Qe6 {[%clk 0:01:24]} 34. Qa6 {[%clk 0:00:37]}  bxc5 {[%clk 0:01:20]} 35. dxc5 {[%clk 0:00:34]}  Qxa6 {[%clk 0:01:19]} 0-1


[Site "https://www.chess.com"]

[Event "Titled Tuesday Blitz June 27 Late 2023"]
[White "szachmistrz2500"]
[Black "Kushko, Dmitriy"]
[BlackFideId "14162261"]
[WhiteElo "2439"]
[BlackElo "2793"]
[Result "0-1"]
[Round "1"]
[TimeControl "180+2"]
[Date "2023.06.27"]
[WhiteClock "0:00:08"]
[BlackClock "0:00:44"]
[Board "62"]

1. d4 {[%clk 0:02:58]}  g6 {[%clk 0:03:00]} 2. c4 {[%clk 0:02:56]}  Bg7 {[%clk 0:03:00]} 3. Nf3 {[%clk 0:02:55]}  d6 {[%clk 0:03:00]} 4. Nc3 {[%clk 0:02:53]}  e5 {[%clk 0:03:00]} 5. e4 {[%clk 0:02:51]}  Bg4 {[%clk 0:02:59]} 6. Be3 {[%clk 0:02:47]}  Nc6 {[%clk 0:02:49]} 7. d5 {[%clk 0:02:47]}  Nd4 {[%clk 0:02:49]} 8. Be2 {[%clk 0:02:46]}  Bxf3 {[%clk 0:02:49]} 9. Bxf3 {[%clk 0:02:42]}  Ne7 {[%clk 0:02:49]} 10. O-O {[%clk 0:02:37]}  O-O {[%clk 0:02:49]} 11. Be2 {[%clk 0:02:16]}  c5 {[%clk 0:02:48]} 12. Bd3 {[%clk 0:02:06]}  f5 {[%clk 0:02:39]} 13. f4 {[%clk 0:02:06]}  fxe4 {[%clk 0:02:34]} 14. Bxe4 {[%clk 0:01:56]}  Nef5 {[%clk 0:02:32]} 15. Bc1 {[%clk 0:01:49]}  Qe7 {[%clk 0:02:15]} 16. Qd3 {[%clk 0:01:43]}  Rae8 {[%clk 0:02:12]} 17. Bd2 {[%clk 0:01:41]}  exf4 {[%clk 0:02:02]} 18. Bxf4 {[%clk 0:01:41]}  Be5 {[%clk 0:02:02]} 19. Bxe5 {[%clk 0:01:31]}  dxe5 {[%clk 0:01:58]} 20. Rae1 {[%clk 0:01:23]}  Nd6 {[%clk 0:01:58]} 21. a3 {[%clk 0:01:15]}  Rxf1+ {[%clk 0:01:56]} 22. Rxf1 {[%clk 0:01:15]}  Rf8 {[%clk 0:01:56]} 23. b4 {[%clk 0:01:11]}  Rxf1+ {[%clk 0:01:49]} 24. Qxf1 {[%clk 0:01:05]}  b6 {[%clk 0:01:36]} 25. bxc5 {[%clk 0:00:59]}  bxc5 {[%clk 0:01:37]} 26. Qd3 {[%clk 0:00:50]}  Qg5 {[%clk 0:01:34]} 27. g3 {[%clk 0:00:35]}  Kg7 {[%clk 0:01:16]} 28. Kg2 {[%clk 0:00:35]}  Qc1 {[%clk 0:01:15]} 29. Kh3 {[%clk 0:00:35]}  Qxa3 {[%clk 0:01:11]} 30. Nb5 {[%clk 0:00:35]}  Qxd3 {[%clk 0:01:11]} 31. Bxd3 {[%clk 0:00:35]}  N6xb5 {[%clk 0:01:08]} 32. cxb5 {[%clk 0:00:35]}  Nf5 {[%clk 0:01:02]} 33. g4 {[%clk 0:00:23]}  Nd6 {[%clk 0:01:00]} 34. Kg3 {[%clk 0:00:21]}  g5 {[%clk 0:00:57]} 35. Kf3 {[%clk 0:00:20]}  h6 {[%clk 0:00:57]} 36. Ke3 {[%clk 0:00:20]}  Kf6 {[%clk 0:00:56]} 37. Be4 {[%clk 0:00:19]}  Ke7 {[%clk 0:00:51]} 38. h3 {[%clk 0:00:19]}  Nxb5 {[%clk 0:00:50]} 39. Bd3 {[%clk 0:00:19]}  Nd6 {[%clk 0:00:51]} 40. Ba6 {[%clk 0:00:18]}  Kd7 {[%clk 0:00:50]} 41. Kd3 {[%clk 0:00:19]}  Kc7 {[%clk 0:00:51]} 42. Kc3 {[%clk 0:00:18]}  Kb6 {[%clk 0:00:51]} 43. Bd3 {[%clk 0:00:18]}  a5 {[%clk 0:00:49]} 44. Bg6 {[%clk 0:00:14]}  a4 {[%clk 0:00:48]} 45. Bc2 {[%clk 0:00:14]}  Ka5 {[%clk 0:00:47]} 46. Bd3 {[%clk 0:00:14]}  a3 {[%clk 0:00:44]} 47. Kb3 {[%clk 0:00:08]}  c4+ {[%clk 0:00:44]} 0-1


[Site "https://www.chess.com"]

[Event "Titled Tuesday Blitz June 27 Late 2023"]
[White "Maksimovic, Bojan"]
[Black "SergioMoralesG"]
[WhiteFideId "14408120"]
[WhiteElo "2789"]
[BlackElo "2438"]
[Result "1-0"]
[Round "1"]
[TimeControl "180+2"]
[Date "2023.06.27"]
[WhiteClock "0:01:54"]
[BlackClock "0:00:09"]
[Board "63"]

1. Nf3 {[%clk 0:03:00]}  c5 {[%clk 0:02:57]} 2. g3 {[%clk 0:03:01]}  Nc6 {[%clk 0:02:58]} 3. Bg2 {[%clk 0:03:01]}  g6 {[%clk 0:02:58]} 4. O-O {[%clk 0:03:02]}  Bg7 {[%clk 0:02:59]} 5. d3 {[%clk 0:03:03]}  e6 {[%clk 0:02:57]} 6. Nc3 {[%clk 0:03:02]}  Nge7 {[%clk 0:02:57]} 7. e4 {[%clk 0:03:01]}  d6 {[%clk 0:02:55]} 8. Bf4 {[%clk 0:03:01]}  e5 {[%clk 0:02:52]} 9. Bg5 {[%clk 0:03:00]}  h6 {[%clk 0:02:52]} 10. Bxe7 {[%clk 0:03:01]}  Nxe7 {[%clk 0:02:51]} 11. Nd5 {[%clk 0:03:01]}  Nxd5 {[%clk 0:02:50]} 12. exd5 {[%clk 0:03:02]}  O-O {[%clk 0:02:50]} 13. Nd2 {[%clk 0:03:03]}  f5 {[%clk 0:02:49]} 14. a4 {[%clk 0:03:03]}  Bd7 {[%clk 0:02:47]} 15. Nc4 {[%clk 0:03:04]}  Qf6 {[%clk 0:02:45]} 16. c3 {[%clk 0:03:04]}  f4 {[%clk 0:02:42]} 17. Be4 {[%clk 0:03:03]}  Bh3 {[%clk 0:02:40]} 18. Qe2 {[%clk 0:03:01]}  Bxf1 {[%clk 0:02:39]} 19. Rxf1 {[%clk 0:03:02]}  Rad8 {[%clk 0:02:35]} 20. Qg4 {[%clk 0:03:01]}  fxg3 {[%clk 0:02:20]} 21. hxg3 {[%clk 0:02:59]}  Qg5 {[%clk 0:02:10]} 22. Qxg5 {[%clk 0:02:54]}  hxg5 {[%clk 0:02:11]} 23. Bxg6 {[%clk 0:02:54]}  b6 {[%clk 0:02:00]} 24. Kg2 {[%clk 0:02:55]}  Rf6 {[%clk 0:01:59]} 25. Be4 {[%clk 0:02:50]}  Rb8 {[%clk 0:01:59]} 26. Ne3 {[%clk 0:02:39]}  b5 {[%clk 0:01:55]} 27. axb5 {[%clk 0:02:35]}  Rxb5 {[%clk 0:01:56]} 28. Nc4 {[%clk 0:02:36]}  Bf8 {[%clk 0:01:52]} 29. Ra1 {[%clk 0:02:36]}  a5 {[%clk 0:01:47]} 30. Ra2 {[%clk 0:02:28]}  Be7 {[%clk 0:01:44]} 31. Nxa5 {[%clk 0:02:28]}  g4 {[%clk 0:01:40]} 32. Nc4 {[%clk 0:02:28]}  Rf8 {[%clk 0:01:28]} 33. Ra7 {[%clk 0:02:26]}  Bg5 {[%clk 0:01:26]} 34. Ra1 {[%clk 0:02:18]}  Rd8 {[%clk 0:01:22]} 35. Rh1 {[%clk 0:02:16]}  Rb7 {[%clk 0:01:21]} 36. Bf5 {[%clk 0:02:13]}  Ra7 {[%clk 0:00:51]} 37. Bxg4 {[%clk 0:02:12]}  Ra2 {[%clk 0:00:51]} 38. Bf5 {[%clk 0:02:06]}  Kg7 {[%clk 0:00:49]} 39. Rh7+ {[%clk 0:02:06]}  Kg8 {[%clk 0:00:49]} 40. Be4 {[%clk 0:02:06]}  Rf8 {[%clk 0:00:47]} 41. Rb7 {[%clk 0:02:04]}  Ra1 {[%clk 0:00:46]} 42. Nxd6 {[%clk 0:02:00]}  Rd1 {[%clk 0:00:44]} 43. c4 {[%clk 0:01:52]}  Rd2 {[%clk 0:00:43]} 44. Bh7+ {[%clk 0:01:52]}  Kh8 {[%clk 0:00:43]} 45. Ne4 {[%clk 0:01:53]}  Rc2 {[%clk 0:00:32]} 46. Nxg5 {[%clk 0:01:53]}  Rfxf2+ {[%clk 0:00:32]} 47. Kh3 {[%clk 0:01:53]}  Rxb2 {[%clk 0:00:28]} 48. Re7 {[%clk 0:01:53]}  Rbd2 {[%clk 0:00:19]} 49. Be4 {[%clk 0:01:53]}  Rh2+ {[%clk 0:00:13]} 50. Kg4 {[%clk 0:01:53]}  Kg8 {[%clk 0:00:13]} 51. d6 {[%clk 0:01:53]}  Kf8 {[%clk 0:00:12]} 52. Ne6+ {[%clk 0:01:53]}  Kg8 {[%clk 0:00:09]} 53. d7 {[%clk 0:01:54]} 1-0


[Site "https://www.chess.com"]

[Event "Titled Tuesday Blitz June 27 Late 2023"]
[White "JERO-8914"]
[Black "Leitao, Rafael"]
[BlackFideId "2101246"]
[WhiteElo "2437"]
[BlackElo "2787"]
[Result "0-1"]
[Round "1"]
[TimeControl "180+2"]
[Date "2023.06.27"]
[WhiteClock "0:00:06"]
[BlackClock "0:00:25"]
[Board "64"]

1. e4 {[%clk 0:02:47]}  e5 {[%clk 0:02:57]} 2. Nf3 {[%clk 0:02:28]}  Nc6 {[%clk 0:02:56]} 3. Bc4 {[%clk 0:02:26]}  Nf6 {[%clk 0:02:55]} 4. d3 {[%clk 0:02:24]}  Be7 {[%clk 0:02:53]} 5. O-O {[%clk 0:02:22]}  O-O {[%clk 0:02:49]} 6. c3 {[%clk 0:02:22]}  d6 {[%clk 0:02:47]} 7. h3 {[%clk 0:02:19]}  h6 {[%clk 0:02:43]} 8. Nbd2 {[%clk 0:02:12]}  Be6 {[%clk 0:02:33]} 9. Re1 {[%clk 0:02:05]}  Qd7 {[%clk 0:02:28]} 10. d4 {[%clk 0:01:59]}  exd4 {[%clk 0:02:25]} 11. cxd4 {[%clk 0:01:58]}  d5 {[%clk 0:02:16]} 12. exd5 {[%clk 0:01:39]}  Bxd5 {[%clk 0:02:07]} 13. Ne5 {[%clk 0:01:30]}  Qd6 {[%clk 0:01:50]} 14. Ndf3 {[%clk 0:01:22]}  Rad8 {[%clk 0:01:40]} 15. Bxd5 {[%clk 0:01:12]}  Nxd5 {[%clk 0:01:36]} 16. Be3 {[%clk 0:01:09]}  Bf6 {[%clk 0:01:33]} 17. Ng4 {[%clk 0:01:01]}  Rfe8 {[%clk 0:01:32]} 18. Qb3 {[%clk 0:00:58]}  Nb6 {[%clk 0:01:10]} 19. Rad1 {[%clk 0:00:51]}  Na5 {[%clk 0:01:00]} 20. Qc2 {[%clk 0:00:47]}  Nc6 {[%clk 0:00:58]} 21. Qb3 {[%clk 0:00:46]}  Qe6 {[%clk 0:00:46]} 22. Bxh6 {[%clk 0:00:20]}  Qxb3 {[%clk 0:00:40]} 23. Nxf6+ {[%clk 0:00:19]}  gxf6 {[%clk 0:00:40]} 24. axb3 {[%clk 0:00:19]}  Rxe1+ {[%clk 0:00:39]} 25. Rxe1 {[%clk 0:00:19]}  Nxd4 {[%clk 0:00:33]} 26. Nxd4 {[%clk 0:00:17]}  Rxd4 {[%clk 0:00:33]} 27. Re8+ {[%clk 0:00:17]}  Kh7 {[%clk 0:00:33]} 28. Be3 {[%clk 0:00:18]}  Rb4 {[%clk 0:00:33]} 29. Re7 {[%clk 0:00:17]}  Nd5 {[%clk 0:00:31]} 30. Rxf7+ {[%clk 0:00:17]}  Kg6 {[%clk 0:00:30]} 31. Rd7 {[%clk 0:00:16]}  c6 {[%clk 0:00:31]} 32. Bd4 {[%clk 0:00:15]}  Rxb3 {[%clk 0:00:31]} 33. g4 {[%clk 0:00:12]}  Rxh3 {[%clk 0:00:26]} 34. Kg2 {[%clk 0:00:12]}  Rd3 {[%clk 0:00:25]} 35. Bxa7 {[%clk 0:00:06]}  Nf4+ {[%clk 0:00:25]} 0-1


[Site "https://www.chess.com"]

[Event "Titled Tuesday Blitz June 27 Late 2023"]
[White "Tsaruk, Maksim"]
[Black "Remolar Gallen, Jose"]
[WhiteFideId "13511173"]
[BlackFideId "2215187"]
[WhiteElo "2786"]
[BlackElo "2437"]
[Result "1/2-1/2"]
[Round "1"]
[TimeControl "180+2"]
[Date "2023.06.27"]
[WhiteClock "0:00:51"]
[BlackClock "0:00:37"]
[Board "65"]

1. e4 {[%clk 0:03:00]}  c5 {[%clk 0:02:56]} 2. Nf3 {[%clk 0:03:01]}  d6 {[%clk 0:02:57]} 3. d4 {[%clk 0:03:02]}  cxd4 {[%clk 0:02:57]} 4. Nxd4 {[%clk 0:03:02]}  Nf6 {[%clk 0:02:57]} 5. Nc3 {[%clk 0:03:03]}  a6 {[%clk 0:02:58]} 6. g3 {[%clk 0:03:03]}  e5 {[%clk 0:02:55]} 7. Nb3 {[%clk 0:03:04]}  Be7 {[%clk 0:02:55]} 8. Bg2 {[%clk 0:03:04]}  O-O {[%clk 0:02:55]} 9. O-O {[%clk 0:03:05]}  b5 {[%clk 0:02:50]} 10. a4 {[%clk 0:03:04]}  b4 {[%clk 0:02:45]} 11. Nd5 {[%clk 0:03:04]}  a5 {[%clk 0:02:40]} 12. Nxe7+ {[%clk 0:02:58]}  Qxe7 {[%clk 0:02:40]} 13. Bd2 {[%clk 0:02:58]}  Bb7 {[%clk 0:02:35]} 14. Re1 {[%clk 0:02:40]}  Rd8 {[%clk 0:02:35]} 15. c3 {[%clk 0:02:40]}  d5 {[%clk 0:02:22]} 16. cxb4 {[%clk 0:02:38]}  axb4 {[%clk 0:02:09]} 17. exd5 {[%clk 0:02:38]}  Bxd5 {[%clk 0:02:04]} 18. Bxd5 {[%clk 0:02:31]}  Rxd5 {[%clk 0:02:05]} 19. Qf3 {[%clk 0:02:26]}  Nc6 {[%clk 0:02:02]} 20. Bg5 {[%clk 0:02:27]}  Rad8 {[%clk 0:02:00]} 21. a5 {[%clk 0:02:24]}  Qe6 {[%clk 0:01:29]} 22. Bxf6 {[%clk 0:02:21]}  gxf6 {[%clk 0:01:27]} 23. a6 {[%clk 0:02:20]}  Rd3 {[%clk 0:01:24]} 24. Qxd3 {[%clk 0:01:54]}  Rxd3 {[%clk 0:01:22]} 25. Nc5 {[%clk 0:01:55]}  Qd5 {[%clk 0:01:17]} 26. Nxd3 {[%clk 0:01:56]}  Qxd3 {[%clk 0:01:18]} 27. a7 {[%clk 0:01:47]}  Nxa7 {[%clk 0:01:15]} 28. Rxa7 {[%clk 0:01:48]}  Qc2 {[%clk 0:00:55]} 29. Rb7 {[%clk 0:01:23]}  b3 {[%clk 0:00:50]} 30. Ra1 {[%clk 0:00:49]}  Qxb2 {[%clk 0:00:50]} 31. Ra8+ {[%clk 0:00:49]}  Kg7 {[%clk 0:00:49]} 32. Rab8 {[%clk 0:00:50]}  Qb1+ {[%clk 0:00:48]} 33. Kg2 {[%clk 0:00:51]}  Qe4+ {[%clk 0:00:48]} 34. Kg1 {[%clk 0:00:52]}  Qe1+ {[%clk 0:00:44]} 35. Kg2 {[%clk 0:00:52]}  Qe4+ {[%clk 0:00:44]} 36. Kg1 {[%clk 0:00:51]}  Qe1+ {[%clk 0:00:37]} 37. Kg2 {[%clk 0:00:51]}  Qe4+ {[%clk 0:00:37]} 1/2-1/2


[Site "https://www.chess.com"]

[Event "Titled Tuesday Blitz June 27 Late 2023"]
[White "liwadas82"]
[Black "Morefield, Jason"]
[BlackFideId "30920825"]
[WhiteElo "2437"]
[BlackElo "2763"]
[Result "0-1"]
[Round "1"]
[TimeControl "180+2"]
[Date "2023.06.27"]
[WhiteClock "0:00:00"]
[BlackClock "0:00:09"]
[Board "66"]

1. e4 {[%clk 0:02:58]}  d6 {[%clk 0:02:59]} 2. d4 {[%clk 0:02:56]}  Nf6 {[%clk 0:03:00]} 3. Nc3 {[%clk 0:02:55]}  g6 {[%clk 0:03:00]} 4. f3 {[%clk 0:02:54]}  c6 {[%clk 0:02:59]} 5. Be3 {[%clk 0:02:54]}  Nbd7 {[%clk 0:02:59]} 6. Qd2 {[%clk 0:02:55]}  b5 {[%clk 0:02:51]} 7. a4 {[%clk 0:02:52]}  b4 {[%clk 0:02:51]} 8. Nd1 {[%clk 0:02:52]}  a5 {[%clk 0:02:51]} 9. Nf2 {[%clk 0:02:49]}  Qc7 {[%clk 0:02:48]} 10. Bd3 {[%clk 0:02:48]}  c5 {[%clk 0:02:45]} 11. c3 {[%clk 0:02:41]}  Bg7 {[%clk 0:02:19]} 12. Ne2 {[%clk 0:02:39]}  O-O {[%clk 0:02:18]} 13. O-O {[%clk 0:02:38]}  e5 {[%clk 0:02:11]} 14. Bb5 {[%clk 0:02:19]}  Rd8 {[%clk 0:01:54]} 15. d5 {[%clk 0:02:12]}  Nb6 {[%clk 0:01:47]} 16. c4 {[%clk 0:02:11]}  Bb7 {[%clk 0:01:39]} 17. b3 {[%clk 0:02:11]}  Nc8 {[%clk 0:01:39]} 18. Bh6 {[%clk 0:02:06]}  Ne7 {[%clk 0:01:39]} 19. Bxg7 {[%clk 0:02:06]}  Kxg7 {[%clk 0:01:40]} 20. Nd3 {[%clk 0:02:00]}  Rh8 {[%clk 0:01:31]} 21. Rf2 {[%clk 0:01:59]}  h5 {[%clk 0:01:26]} 22. Raf1 {[%clk 0:01:59]}  h4 {[%clk 0:01:26]} 23. h3 {[%clk 0:01:59]}  Rh5 {[%clk 0:01:22]} 24. f4 {[%clk 0:01:59]}  Nxe4 {[%clk 0:01:21]} 25. Qe3 {[%clk 0:01:54]}  Nxf2 {[%clk 0:01:21]} 26. Nxf2 {[%clk 0:01:48]}  Nf5 {[%clk 0:01:19]} 27. Qf3 {[%clk 0:01:44]}  Nd4 {[%clk 0:01:04]} 28. Nxd4 {[%clk 0:01:43]}  exd4 {[%clk 0:01:03]} 29. Ne4 {[%clk 0:01:22]}  Bc8 {[%clk 0:00:54]} 30. Ng5 {[%clk 0:00:55]}  Qe7 {[%clk 0:00:44]} 31. Kf2 {[%clk 0:00:49]}  Qe3+ {[%clk 0:00:38]} 32. Qxe3 {[%clk 0:00:48]}  dxe3+ {[%clk 0:00:39]} 33. Kxe3 {[%clk 0:00:48]}  Ra7 {[%clk 0:00:39]} 34. Kf3 {[%clk 0:00:45]}  Bf5 {[%clk 0:00:31]} 35. Re1 {[%clk 0:00:44]}  Kf6 {[%clk 0:00:27]} 36. Re8 {[%clk 0:00:38]}  Bc2 {[%clk 0:00:21]} 37. Rd8 {[%clk 0:00:37]}  Bxb3 {[%clk 0:00:18]} 38. Rxd6+ {[%clk 0:00:38]}  Kg7 {[%clk 0:00:17]} 39. Ke3 {[%clk 0:00:27]}  Bc2 {[%clk 0:00:14]} 40. Kd2 {[%clk 0:00:27]}  Bf5 {[%clk 0:00:11]} 41. Rc6 {[%clk 0:00:22]}  Re7 {[%clk 0:00:07]} 42. d6 {[%clk 0:00:20]}  Rd7 {[%clk 0:00:06]} 43. Rb6 {[%clk 0:00:19]}  Rd8 {[%clk 0:00:06]} 44. Rb7 {[%clk 0:00:17]}  Rxd6+ {[%clk 0:00:06]} 45. Kc1 {[%clk 0:00:15]}  Rxg5 {[%clk 0:00:06]} 46. fxg5 {[%clk 0:00:15]}  Be6 {[%clk 0:00:07]} 47. Rc7 {[%clk 0:00:14]}  Rd3 {[%clk 0:00:06]} 48. Rxc5 {[%clk 0:00:14]}  Rg3 {[%clk 0:00:06]} 49. Bc6 {[%clk 0:00:11]}  Rc3+ {[%clk 0:00:04]} 50. Kb2 {[%clk 0:00:11]}  Rxc4 {[%clk 0:00:04]} 51. Rxc4 {[%clk 0:00:10]}  Bxc4 {[%clk 0:00:05]} 52. Kc1 {[%clk 0:00:09]}  Kf8 {[%clk 0:00:04]} 53. Kd2 {[%clk 0:00:09]}  Ke7 {[%clk 0:00:04]} 54. Ke3 {[%clk 0:00:09]}  Kd6 {[%clk 0:00:05]} 55. Be4 {[%clk 0:00:10]}  Ke5 {[%clk 0:00:05]} 56. Bb1 {[%clk 0:00:10]}  b3 {[%clk 0:00:05]} 57. Kd2 {[%clk 0:00:09]}  Be6 {[%clk 0:00:06]} 58. Kc3 {[%clk 0:00:09]}  Kf4 {[%clk 0:00:06]} 59. Bd3 {[%clk 0:00:04]}  Kxg5 {[%clk 0:00:06]} 60. Be4 {[%clk 0:00:04]}  Kf4 {[%clk 0:00:07]} 61. Bf3 {[%clk 0:00:04]}  g5 {[%clk 0:00:07]} 62. Bd1 {[%clk 0:00:04]}  Kg3 {[%clk 0:00:07]} 63. Bf3 {[%clk 0:00:02]}  Bxh3 {[%clk 0:00:07]} 64. Bd5 {[%clk 0:00:02]}  Bxg2 {[%clk 0:00:07]} 65. Bxf7 {[%clk 0:00:02]}  h3 {[%clk 0:00:07]} 66. Bxb3 {[%clk 0:00:02]}  h2 {[%clk 0:00:08]} 67. Bd5 {[%clk 0:00:02]}  Bxd5 {[%clk 0:00:08]} 68. Kd4 {[%clk 0:00:03]}  h1=Q {[%clk 0:00:09]} 69. Kc5 {[%clk 0:00:00]}  Qe4 {[%clk 0:00:09]} 0-1


[Site "https://www.chess.com"]

[Event "Titled Tuesday Blitz June 27 Late 2023"]
[White "Bellissimo, Joseph F."]
[Black "Tristan, Leonardo"]
[WhiteFideId "2609843"]
[BlackFideId "113816"]
[WhiteElo "2431"]
[BlackElo "2762"]
[Result "0-1"]
[Round "1"]
[TimeControl "180+2"]
[Date "2023.06.27"]
[WhiteClock "0:02:03"]
[BlackClock "0:02:34"]
[Board "68"]

1. e4 {[%clk 0:03:00]}  d5 {[%clk 0:03:00]} 2. exd5 {[%clk 0:03:00]}  Qxd5 {[%clk 0:03:01]} 3. Nc3 {[%clk 0:03:00]}  Qa5 {[%clk 0:03:01]} 4. d4 {[%clk 0:03:01]}  Nf6 {[%clk 0:03:01]} 5. Nf3 {[%clk 0:03:01]}  Bf5 {[%clk 0:03:02]} 6. Ne5 {[%clk 0:03:00]}  c6 {[%clk 0:03:02]} 7. Bc4 {[%clk 0:02:59]}  e6 {[%clk 0:03:02]} 8. O-O {[%clk 0:02:58]}  Nbd7 {[%clk 0:03:02]} 9. Re1 {[%clk 0:02:58]}  Nxe5 {[%clk 0:02:45]} 10. dxe5 {[%clk 0:02:48]}  Nd5 {[%clk 0:02:40]} 11. Nxd5 {[%clk 0:02:05]}  cxd5 {[%clk 0:02:40]} 12. Bd3 {[%clk 0:02:05]}  Bxd3 {[%clk 0:02:34]} 13. Qxd3 {[%clk 0:02:03]}  Qxe1+ {[%clk 0:02:34]} 0-1


[Site "https://www.chess.com"]

[Event "Titled Tuesday Blitz June 27 Late 2023"]
[White "Cruz, Jonathan"]
[Black "zsizsi99"]
[WhiteFideId "3802124"]
[WhiteElo "2761"]
[BlackElo "2431"]
[Result "1-0"]
[Round "1"]
[TimeControl "180+2"]
[Date "2023.06.27"]
[WhiteClock "0:00:24"]
[BlackClock "0:00:06"]
[Board "69"]

1. Nf3 {[%clk 0:02:46]}  Nf6 {[%clk 0:02:46]} 2. g3 {[%clk 0:02:44]}  b5 {[%clk 0:02:38]} 3. Bg2 {[%clk 0:02:43]}  Bb7 {[%clk 0:02:37]} 4. O-O {[%clk 0:02:42]}  e6 {[%clk 0:02:37]} 5. d3 {[%clk 0:02:39]}  Be7 {[%clk 0:02:37]} 6. e4 {[%clk 0:02:36]}  O-O {[%clk 0:02:36]} 7. Re1 {[%clk 0:02:30]}  c5 {[%clk 0:02:24]} 8. Nc3 {[%clk 0:02:23]}  b4 {[%clk 0:02:23]} 9. Nb1 {[%clk 0:02:14]}  d5 {[%clk 0:02:21]} 10. Nbd2 {[%clk 0:02:13]}  Nc6 {[%clk 0:02:09]} 11. e5 {[%clk 0:02:11]}  Nd7 {[%clk 0:02:09]} 12. Nf1 {[%clk 0:02:11]}  Qc7 {[%clk 0:02:08]} 13. Bf4 {[%clk 0:02:11]}  c4 {[%clk 0:01:53]} 14. d4 {[%clk 0:01:56]}  c3 {[%clk 0:01:52]} 15. b3 {[%clk 0:01:49]}  a5 {[%clk 0:01:46]} 16. Ne3 {[%clk 0:01:48]}  a4 {[%clk 0:01:46]} 17. Nxd5 {[%clk 0:01:46]}  exd5 {[%clk 0:01:44]} 18. e6 {[%clk 0:01:46]}  Bd6 {[%clk 0:01:41]} 19. Bxd6 {[%clk 0:01:45]}  Qxd6 {[%clk 0:01:41]} 20. exd7 {[%clk 0:01:46]}  Qxd7 {[%clk 0:01:42]} 21. Ne5 {[%clk 0:01:43]}  Nxe5 {[%clk 0:01:40]} 22. dxe5 {[%clk 0:01:43]}  axb3 {[%clk 0:01:37]} 23. axb3 {[%clk 0:01:43]}  Rxa1 {[%clk 0:01:16]} 24. Qxa1 {[%clk 0:01:44]}  Ra8 {[%clk 0:01:16]} 25. Qd1 {[%clk 0:01:41]}  Qf5 {[%clk 0:01:02]} 26. Bxd5 {[%clk 0:01:07]}  Bxd5 {[%clk 0:00:39]} 27. Qxd5 {[%clk 0:00:52]}  Re8 {[%clk 0:00:40]} 28. Qe4 {[%clk 0:00:44]}  Qg5 {[%clk 0:00:30]} 29. Qxb4 {[%clk 0:00:40]}  Qd2 {[%clk 0:00:30]} 30. Qe4 {[%clk 0:00:40]}  f6 {[%clk 0:00:30]} 31. e6 {[%clk 0:00:40]}  f5 {[%clk 0:00:28]} 32. Qe2 {[%clk 0:00:35]}  Kf8 {[%clk 0:00:20]} 33. e7+ {[%clk 0:00:34]}  Kg8 {[%clk 0:00:19]} 34. Qxd2 {[%clk 0:00:30]}  cxd2 {[%clk 0:00:19]} 35. Rd1 {[%clk 0:00:31]}  Rxe7 {[%clk 0:00:18]} 36. Rxd2 {[%clk 0:00:31]}  Re1+ {[%clk 0:00:18]} 37. Kg2 {[%clk 0:00:31]}  Rc1 {[%clk 0:00:19]} 38. Rd8+ {[%clk 0:00:28]}  Kf7 {[%clk 0:00:19]} 39. Rc8 {[%clk 0:00:28]}  Ke6 {[%clk 0:00:18]} 40. b4 {[%clk 0:00:27]}  Kd7 {[%clk 0:00:17]} 41. Rc5 {[%clk 0:00:27]}  g6 {[%clk 0:00:17]} 42. c3 {[%clk 0:00:24]}  Rc2 {[%clk 0:00:15]} 43. h4 {[%clk 0:00:25]}  Kd6 {[%clk 0:00:06]} 44. Rc8 {[%clk 0:00:24]} 1-0


[Site "https://www.chess.com"]